fUSD/lending_fUSD_20250614
["ID","MTS","AMOUNT","RATE_DAILY","PERIOD"]
[365769494,1749898240893,-150.0,0.00016982,2]
[365769495,1749898240903,-150.0,0.00016985,2]
[365769496,1749898240912,-150.0,0.00016986,2]
[365769497,1749898240922,-150.32,0.0001699,2]
[365769498,1749898240931,-150.32,0.0001699,2]
[365769499,1749898240940,-150.32,0.0001699,2]
[365769500,1749898240950,-150.0,0.00016991,2]
[365769501,1749898240959,-7480.5378532,0.00016992,2]
[365769502,1749898240968,-62008.0706666,0.00016992,2]
[365769503,1749898240977,-10666.6253333,0.00016992,2]
[365769504,1749898240986,-4272.6911186,0.00016992,2]
[365769505,1749898240995,-11338.3025848,0.00016992,2]
[365769506,1749898241006,-62399.4428333,0.00016992,2]
[365769507,1749898241015,-150.0,0.00016993,2]
[365769508,1749898241028,-150.0,0.00016999,2]
[365769509,1749898241038,-150.0,0.00016999,2]
[365769510,1749898241047,-150.0,0.00016999,2]
[365769511,1749898241056,-153.28930996,0.00016999,2]
[365769512,1749898241066,-500.0,0.00016999,2]
[365769513,1749898241076,-500.0,0.00016999,2]
[365769514,1749898241084,-500.0,0.00016999,2]
[365769515,1749898241094,-620.0,0.00016999,2]
[365769516,1749898241103,-500.0,0.00016999,2]
[365769517,1749898241114,-500.0,0.00016999,2]
[365769518,1749898241123,-388.71059562,0.00016999,2]
[365769519,1749898241133,-300.0,0.00016999,2]
[365769520,1749898241143,-589.0,0.00016999,2]
[365769521,1749898241152,-28091.32065797,0.00016999,2]
[365769522,1749898241161,-287511.45217789,0.00016999,2]
[365769523,1749898241173,-5538.57770003,0.00016999,2]
[365769535,1749898243049,-10737.0,0.00016999,2]
[365769536,1749898243102,-335.41609434,0.00016999,2]
[365769537,1749898243157,-21885.31728241,0.00016999,2]
[365769538,1749898243210,-641.12545339,0.00016999,2]
[365769552,1749898243698,363.47,0.00014281,2]
[365769554,1749898246078,-363.47,0.00016544,2]
[365769555,1749898246088,-709.03,0.00016999,2]
[365769556,1749898246100,-684.64800033,0.00016999,2]
[365769557,1749898246111,-1076.70404442,0.00016999,2]
[365769563,1749898280558,150.0,0.000246,120]
[365769564,1749898316981,700.0,0.00015068,2]
[365769565,1749898319899,-184.44394342,0.00016438,2]
[365769566,1749898322533,3080.27810339,0.00016,5]
[365769567,1749898349682,-184.44394342,0.00016066,2]
[365769568,1749898408945,900.0,0.00015068,2]
[365769569,1749898472439,-184.44394342,0.00016032,2]
[365769570,1749898495391,400.0,0.00024657,120]
[365769571,1749898624269,254.95596862,0.000246,120]
[365769572,1749898723605,664.82,0.00015996,2]
[365769573,1749898796559,8631.91,0.00015993,2]
[365769575,1749899022887,155.69,0.00013699,2]
[365769576,1749899030395,200.0,0.00013631,2]
[365769577,1749899067837,502.15236634,0.00016,2]
[365769578,1749899120311,1000.0,0.00015943,2]
[365769579,1749899163092,200.0,0.00015849,2]
[365769580,1749899163958,184.44394342,0.00013529,2]
[365769581,1749899163986,5615.55605658,0.00013529,2]
[365769582,1749899168619,4608.0,0.00024658,120]
[365769583,1749899205191,201.0,0.00015478,2]
[365769584,1749899205454,201.0,0.0001599,2]
[365769587,1749899275241,150.0,0.00015814,2]
[365769599,1749899380088,362.88,0.000158,2]
[365769600,1749899405144,1982.929006,0.00015952,2]
[365769601,1749899408332,176.0,0.00024658,120]
[365769602,1749899419711,400.0,0.00024657,120]
[365769603,1749899430431,698.72,0.00013975,2]
[365769609,1749899432216,-65.55605658,0.00016032,2]
[365769610,1749899432227,-250.0,0.00016049,2]
[365769611,1749899432236,-158.39605658,0.00016066,2]
[365769612,1749899432246,-301.28,0.0001608,2]
[365769613,1749899432255,-305.14,0.0001608,2]
[365769614,1749899432265,-698.72,0.00016239,2]
[365769615,1749899432274,-304.34,0.00016277,2]
[365769616,1749899432284,-247.57,0.00016351,2]
[365769617,1749899432293,-247.57,0.00016351,2]
[365769618,1749899432303,-248.27,0.00016351,2]
[365769619,1749899432313,-302.27,0.00016351,2]
[365769620,1749899432323,-207.4,0.00016428,2]
[365769621,1749899432332,-1200.0,0.00016436,2]
[365769622,1749899432341,-515.55605658,0.00016438,2]
[365769623,1749899432351,-900.0,0.00016438,2]
[365769624,1749899432360,-254.33,0.00016438,2]
[365769625,1749899432369,-245.22,0.00016438,2]
[365769626,1749899432378,-300.13,0.00016438,2]
[365769627,1749899432387,-249.48,0.00016438,2]
[365769628,1749899432396,-252.64,0.00016438,2]
[365769629,1749899432406,-248.85,0.00016438,2]
[365769630,1749899432415,-302.18,0.00016438,2]
[365769631,1749899432424,-201.0,0.00016501,3]
[365769632,1749899432434,-152.56,0.00016518,2]
[365769633,1749899432443,-163.42,0.00016712,2]
[365769634,1749899432453,-163.42,0.00016712,2]
[365769635,1749899432462,-163.42,0.00016712,2]
[365769636,1749899432471,-500.0,0.00016864,2]
[365769637,1749899432480,-270.0,0.00016889,2]
[365769638,1749899432489,-500.0,0.0001689,2]
[365769639,1749899432499,-500.0,0.0001689,2]
[365769640,1749899432510,-500.0,0.0001689,2]
[365769641,1749899432520,-500.0,0.0001689,2]
[365769642,1749899432529,-500.0,0.0001689,2]
[365769644,1749899432538,-500.0,0.0001689,2]
[365769646,1749899432548,-500.0,0.0001689,2]
[365769648,1749899432558,-500.0,0.0001689,2]
[365769650,1749899432566,-500.0,0.0001689,2]
[365769652,1749899432575,-500.0,0.0001689,2]
[365769654,1749899432585,-151.0,0.0001689,2]
[365769656,1749899432595,-5930.84033103,0.0001689,2]
[365769658,1749899432604,-234.25187808,0.00016892,2]
[365769661,1749899432622,-2622.47032128,0.00016892,2]
[365769663,1749899432632,-824.94723423,0.00016892,2]
[365769665,1749899432641,-8312.70904943,0.00016898,2]
[365769667,1749899432652,-162.74938912,0.00016899,2]
[365769669,1749899432662,-230.52108204,0.00016899,2]
[365769671,1749899432671,-887.04976653,0.00016899,2]
[365769673,1749899432681,-27260.20236194,0.000169,2]
[365769675,1749899432691,-189.05905299,0.000169,2]
[365769677,1749899432700,-40750.06593141,0.000169,2]
[365769679,1749899432710,-253.41,0.000169,2]
[365769681,1749899432719,-246.22,0.000169,2]
[365769683,1749899432728,-304.66,0.000169,2]
[365769685,1749899432738,-249.47,0.000169,2]
[365769686,1749899432747,-251.01,0.000169,2]
[365769688,1749899432756,-251.18,0.000169,2]
[365769691,1749899432766,-302.13,0.000169,2]
[365769692,1749899432775,-253.16,0.000169,2]
[365769694,1749899432785,-251.81,0.000169,2]
[365769695,1749899432794,-250.77,0.000169,2]
[365769697,1749899432804,-305.04,0.000169,2]
[365769699,1749899432814,-246.2,0.000169,2]
[365769701,1749899432823,-247.01,0.000169,2]
[365769703,1749899432832,-250.71,0.000169,2]
[365769705,1749899432842,-302.57,0.000169,2]
[365769707,1749899432851,-253.6,0.000169,2]
[365769709,1749899432860,-420.24524533,0.00016918,2]
[365769711,1749899432869,-150.99,0.00016922,2]
[365769712,1749899432878,-909.359,0.00016943,2]
[365769713,1749899432887,-500.85649628,0.00016973,2]
[365769714,1749899432896,-161.56056267,0.00016983,2]
[365769715,1749899432905,-154.61946531,0.0001699,2]
[365769716,1749899432915,-152.29,0.0001699,2]
[365769717,1749899432924,-152.29,0.0001699,2]
[365769718,1749899432933,-152.29,0.0001699,2]
[365769719,1749899432942,-152.29,0.0001699,2]
[365769720,1749899432950,-152.29,0.0001699,2]
[365769721,1749899432959,-150.0,0.0001699,2]
[365769722,1749899432968,-150.0,0.0001699,2]
[365769723,1749899432977,-152.29,0.0001699,2]
[365769724,1749899432986,-152.29,0.0001699,2]
[365769725,1749899432995,-152.29,0.0001699,2]
[365769726,1749899433004,-500.0,0.00016991,2]
[365769727,1749899433013,-620.0,0.00016991,2]
[365769728,1749899433022,-500.0,0.00016991,2]
[365769730,1749899433032,-614.34958729,0.00016991,2]
[365769732,1749899433042,-500.0,0.00016991,2]
[365769733,1749899433052,-500.0,0.00016991,2]
[365769735,1749899433066,-500.0,0.00016991,2]
[365769737,1749899433075,-500.0,0.00016991,2]
[365769739,1749899433085,-500.0,0.00016991,2]
[365769741,1749899433094,-500.0,0.00016991,2]
[365769744,1749899433105,-500.0,0.00016991,2]
[365769746,1749899433116,-500.0,0.00016991,2]
[365769748,1749899433126,-500.0,0.00016991,2]
[365769750,1749899433136,-500.0,0.00016991,2]
[365769752,1749899433147,-500.0,0.00016991,2]
[365769754,1749899433156,-500.0,0.00016991,2]
[365769756,1749899433166,-384.89513537,0.00016991,2]
[365769758,1749899433176,-500.0,0.00016991,2]
[365769760,1749899433186,-500.0,0.00016991,2]
[365769762,1749899433197,-500.0,0.00016991,2]
[365769764,1749899433206,-500.0,0.00016991,2]
[365769766,1749899433216,-500.0,0.00016991,2]
[365769768,1749899433226,-500.0,0.00016991,2]
[365769770,1749899433235,-500.0,0.00016991,2]
[365769772,1749899433245,-500.0,0.00016991,2]
[365769774,1749899433256,-500.0,0.00016991,2]
[365769776,1749899433267,-500.0,0.00016991,2]
[365769778,1749899433279,-500.0,0.00016991,2]
[365769780,1749899433288,-500.0,0.00016991,2]
[365769782,1749899433297,-500.0,0.00016991,2]
[365769784,1749899433307,-500.0,0.00016991,2]
[365769786,1749899433317,-500.0,0.00016991,2]
[365769787,1749899433326,-500.0,0.00016991,2]
[365769789,1749899433335,-614.63220503,0.00016991,2]
[365769791,1749899433344,-610.80857998,0.00016991,2]
[365769793,1749899433353,-500.0,0.00016991,2]
[365769795,1749899433363,-500.0,0.00016991,2]
[365769797,1749899433373,-500.0,0.00016991,2]
[365769799,1749899433383,-500.0,0.00016991,2]
[365769801,1749899433392,-500.0,0.00016991,2]
[365769803,1749899433402,-500.0,0.00016991,2]
[365769805,1749899433412,-500.0,0.00016991,2]
[365769807,1749899433422,-500.0,0.00016991,2]
[365769809,1749899433432,-500.0,0.00016991,2]
[365769811,1749899433442,-500.0,0.00016991,2]
[365769813,1749899433451,-500.0,0.00016991,2]
[365769815,1749899433460,-500.0,0.00016991,2]
[365769817,1749899433470,-500.0,0.00016991,2]
[365769819,1749899433480,-500.0,0.00016991,2]
[365769821,1749899433489,-500.0,0.00016991,2]
[365769823,1749899433498,-500.0,0.00016991,2]
[365769825,1749899433507,-500.0,0.00016991,2]
[365769827,1749899433517,-500.0,0.00016991,2]
[365769829,1749899433527,-500.0,0.00016991,2]
[365769831,1749899433536,-73058.804,0.00016992,2]
[365769833,1749899433546,-2175.4423226,0.00016992,2]
[365769835,1749899433557,-26030.68794432,0.00016996,2]
[365769838,1749899433569,-39675.98205558,0.00016996,2]
[365769840,1749899433579,-7915.7101401,0.00016996,2]
[365769842,1749899433589,-21584.92272972,0.00016996,2]
[365770065,1749899438823,-2106.45732841,0.00016996,2]
[365770067,1749899438836,-2311.16,0.00016996,2]
[365770205,1749899440140,-32083.14300787,0.00016996,2]
[365770207,1749899440150,-12134.495225,0.00016996,2]
[365770209,1749899440159,-6550.2558072,0.00016997,2]
[365770211,1749899440168,-172.44,0.00016998,2]
[365770213,1749899440178,-666.0,0.00016998,2]
[365770215,1749899440188,-217.16735269,0.00016998,2]
[365770217,1749899440198,-180.17655997,0.00016998,2]
[365770219,1749899440207,-500.0,0.00016998,2]
[365770221,1749899440216,-603.92290282,0.00016998,2]
[365770223,1749899440226,-318.691973,0.00016998,2]
[365770225,1749899440236,-500.0,0.00016998,2]
[365770227,1749899440245,-500.0,0.00016998,2]
[365770229,1749899440255,-500.0,0.00016998,2]
[365770231,1749899440264,-199.51670023,0.00016998,2]
[365770233,1749899440274,-500.0,0.00016998,2]
[365770235,1749899440283,-300.0,0.00016999,2]
[365770237,1749899440292,-666.0,0.00016999,2]
[365770239,1749899440302,-583.14414216,0.00016999,2]
[365770241,1749899440312,-153.28930996,0.00016999,2]
[365770243,1749899440321,-300.0,0.00016999,2]
[365770245,1749899440330,-591.0,0.00016999,2]
[365770247,1749899440339,-29370.71681502,0.00016999,2]
[365770249,1749899440348,-391479.48333532,0.00016999,2]
[365770252,1749899440363,-3434.44,0.00016999,2]
[365770254,1749899440375,-911.93905103,0.00016999,2]
[365770499,1749899443221,-531.0,0.00016999,2]
[365770501,1749899443231,-2588.33276107,0.00016999,2]
[365770518,1749899443376,-107276.6552775,0.00016999,2]
[365770520,1749899443388,-99325.44660894,0.00016999,2]
[365770525,1749899443429,-7021.22392586,0.00016999,2]
[365770527,1749899443440,-249871.66598931,0.00016999,2]
[365770530,1749899443451,-464.43363848,0.00016999,2]
[365770749,1749899446093,-459.48999997,0.00016999,2]
[365770750,1749899446146,-12181.9911041,0.00016999,2]
[365770751,1749899446158,-7725.95919997,0.00016999,2]
[365770752,1749899446200,-385.0,0.00016999,2]
[365770753,1749899446254,-3160.09115793,0.00016999,2]
[365770754,1749899446265,-1322.11371446,0.00016999,2]
[365770755,1749899446363,-167445.20478974,0.00016999,2]
[365770759,1749899501676,204.0,0.00015478,2]
[365770760,1749899515456,600.0,0.00015068,2]
[365770761,1749899620555,643.0,0.00015904,2]
[365770762,1749899625158,643.0,0.00015603,2]
[365770763,1749899627359,643.0,0.00014775,2]
[365770765,1749899637378,643.0,0.00015496,2]
[365770766,1749899639575,643.0,0.00014754,2]
[365770767,1749899643935,643.0,0.00015821,2]
[365770768,1749899646237,949.45,0.00015944,2]
[365770769,1749899651295,643.0,0.00015725,2]
[365770770,1749899655690,643.0,0.00014928,2]
[365770771,1749899669611,643.0,0.00015852,2]
[365770772,1749899674980,643.0,0.00014893,2]
[365770773,1749899687818,3028.7,0.00015889,2]
[365770775,1749899813404,332.41,0.00015863,2]
[365770776,1749899839225,175.14,0.00015855,2]
[365770777,1749899839500,175.14,0.00015934,2]
[365770778,1749899857330,244.0,0.00024657,120]
[365770779,1749899921843,201.0,0.00015013,2]
[365770780,1749899922130,201.0,0.00015549,2]
[365770781,1749900164025,10000.0,0.00015791,2]
[365770782,1749900164046,3613.63,0.00015791,2]
[365770783,1749900218040,248.2,0.00015791,2]
[365770785,1749900229008,150.19481244,0.00015712,20]
[365770786,1749900281654,201.0,0.00015084,2]
[365770787,1749900281917,201.0,0.00015632,2]
[365770788,1749900364567,274.27,0.00015828,2]
[365770789,1749900421246,184.44,0.00015825,2]
[365770818,1749900632400,-338.23445264,0.0001602,2]
[365770819,1749900632529,-304.76554736,0.0001602,2]
[365770820,1749900632538,-24.99831915,0.00016164,2]
[365770821,1749900632549,-675.00168085,0.00016164,2]
[365770822,1749900632558,-94.08793815,0.00016336,3]
[365770823,1749900632576,-57.91206185,0.00016336,3]
[365770824,1749900632585,-2515.10609646,0.00016337,2]
[365770825,1749900632594,-151.0,0.0001639,2]
[365770826,1749900632603,-207.4,0.0001639,2]
[365770827,1749900632613,-302.33,0.00016398,2]
[365770828,1749900632622,-301.3,0.00016398,2]
[365770829,1749900632630,-300.0,0.00016399,2]
[365770830,1749900632639,-661.46255843,0.00016399,2]
[365770831,1749900632650,-538.53744157,0.00016399,2]
[365770832,1749900632659,-461.5,0.000164,2]
[365770833,1749900632668,-1221.41,0.000164,2]
[365770834,1749900632678,-461.22,0.000164,2]
[365770835,1749900632687,-797.31,0.000164,2]
[365770836,1749900632696,-797.31,0.000164,2]
[365770837,1749900632705,-797.31,0.000164,2]
[365770838,1749900632714,-88.90255843,0.000164,2]
[365770863,1749900638289,-708.40744157,0.000164,2]
[365770864,1749900638299,-797.31,0.000164,2]
[365770865,1749900638309,-797.31,0.000164,2]
[365770866,1749900638319,-757.26055843,0.000164,2]
[365770867,1749900638341,-40.04944157,0.000164,2]
[365770868,1749900638350,-797.31,0.000164,2]
[365770869,1749900638359,-600.0,0.00016438,2]
[365770870,1749900638371,-910.16,0.000165,2]
[365770871,1749900638381,-797.31,0.000165,2]
[365770872,1749900638391,-461.5,0.000165,2]
[365770873,1749900638402,-461.5,0.000165,2]
[365770874,1749900638411,-150.0,0.00016541,2]
[365770875,1749900638420,-476.3162422,0.00016577,2]
[365770876,1749900638430,-302.65,0.00016578,2]
[365770877,1749900638439,-500.0,0.000166,2]
[365770878,1749900638449,-643.0,0.0001661,2]
[365770879,1749900638459,-643.0,0.0001663,2]
[365770880,1749900638469,-416.87,0.00016639,2]
[365770881,1749900638478,-152.0,0.00016654,4]
[365770882,1749900638488,-300.61,0.00016683,2]
[365770883,1749900638497,-300.16,0.00016683,2]
[365770884,1749900638506,-643.0,0.000167,2]
[365770885,1749900638515,-539.07912473,0.00016725,2]
[365770886,1749900638524,-151.23,0.00016752,2]
[365770887,1749900638534,-611.26449099,0.00016839,2]
[365770888,1749900638543,-424.03452889,0.00016849,2]
[365770889,1749900638561,-218.96547111,0.00016849,2]
[365770890,1749900638571,-500.0,0.00016864,2]
[365770891,1749900638580,-200.0,0.00016864,2]
[365770892,1749900638589,-500.0,0.00016878,2]
[365770893,1749900638598,-540.13,0.00016878,2]
[365770894,1749900638607,-500.0,0.00016888,2]
[365770895,1749900638618,-500.0,0.00016888,2]
[365770896,1749900638628,-479.90452889,0.00016889,2]
[365770897,1749900638641,-20.09547111,0.00016889,2]
[365770898,1749900638652,-2749.14410478,0.00016893,2]
[365770899,1749900638662,-255.91086806,0.000169,2]
[365770900,1749900638671,-159.39672903,0.000169,2]
[365770901,1749900638681,-2475.30942896,0.000169,2]
[365771081,1749900640537,-692.53440757,0.000169,2]
[365771083,1749900640549,-331.6631502,0.000169,2]
[365771106,1749900640751,-3730.999757,0.000169,2]
[365771108,1749900640761,-164.41315124,0.000169,2]
[365771110,1749900640770,-760.32837132,0.000169,2]
[365771112,1749900640779,-153.64068747,0.000169,2]
[365771114,1749900640789,-75398.34044922,0.000169,2]
[365771116,1749900640798,-171.55152656,0.000169,2]
[365771118,1749900640808,-2146.03147683,0.00016912,2]
[365771119,1749900640817,-643.0,0.0001693,2]
[365771121,1749900640827,-727.487,0.00016934,2]
[365771123,1749900640836,-643.0,0.00016958,2]
[365771126,1749900640846,-152.0,0.00016972,5]
[365771127,1749900640857,-500.0,0.00016973,2]
[365771129,1749900640867,-500.0,0.00016973,2]
[365771131,1749900640876,-505.25259232,0.00016973,2]
[365771133,1749900640886,-501.46367489,0.00016973,2]
[365771135,1749900640895,-500.0,0.00016973,2]
[365771137,1749900640905,-846.92237685,0.00016973,2]
[365771140,1749900640914,-500.0,0.00016978,2]
[365771141,1749900640923,-602.85,0.00016989,2]
[365771143,1749900640934,-500.0,0.00016989,2]
[365771145,1749900640943,-500.0,0.00016989,2]
[365771147,1749900640953,-169.31,0.00016989,2]
[365771149,1749900640962,-152.29,0.0001699,2]
[365771151,1749900640972,-152.29,0.0001699,2]
[365771153,1749900640982,-150.0,0.0001699,2]
[365771156,1749900640992,-150.0,0.0001699,2]
[365771158,1749900641001,-250.0,0.0001699,2]
[365771160,1749900641011,-152.29,0.0001699,2]
[365771162,1749900641021,-152.29,0.0001699,2]
[365771164,1749900641030,-152.29,0.0001699,2]
[365771166,1749900641040,-1750.9018153,0.00016993,2]
[365771168,1749900641050,-25104.5135,0.00016993,2]
[365771170,1749900641060,-3349.0075806,0.00016993,2]
[365771172,1749900641069,-7389.6144671,0.00016993,2]
[365771174,1749900641079,-500.0,0.00016993,2]
[365771176,1749900641088,-500.0,0.00016993,2]
[365771178,1749900641098,-512.73691167,0.00016993,2]
[365771180,1749900641107,-500.0,0.00016993,2]
[365771182,1749900641116,-264.98834837,0.00016993,2]
[365771184,1749900641125,-411.080858,0.00016993,2]
[365771186,1749900641134,-1418.7161973,0.00016993,2]
[365771188,1749900641144,-2141.93244809,0.00016994,2]
[365771190,1749900641154,-180.17655997,0.00016998,2]
[365771192,1749900641162,-199.51670023,0.00016998,2]
[365771194,1749900641172,-500.0,0.00016998,2]
[365771196,1749900641181,-217.16735269,0.00016998,2]
[365771198,1749900641190,-603.92290283,0.00016998,2]
[365771200,1749900641201,-500.0,0.00016998,2]
[365771202,1749900641210,-500.0,0.00016998,2]
[365771204,1749900641218,-318.691973,0.00016998,2]
[365771206,1749900641228,-500.0,0.00016998,2]
[365771208,1749900641237,-500.0,0.00016998,2]
[365771210,1749900641247,-666.0,0.00016998,2]
[365771212,1749900641256,-500.0,0.00016999,2]
[365771214,1749900641266,-300.0,0.00016999,2]
[365771216,1749900641276,-300.0,0.00016999,2]
[365771218,1749900641286,-301.03,0.00016999,2]
[365771220,1749900641296,-1166.28828432,0.00016999,2]
[365771222,1749900641305,-666.0,0.00016999,2]
[365771223,1749900641314,-200.0,0.00016999,2]
[365771224,1749900641323,-181.69,0.00016999,2]
[365771225,1749900641332,-673.06473908,0.00016999,2]
[365771226,1749900641341,-300.0,0.00016999,2]
[365771227,1749900641350,-300.0,0.00016999,2]
[365771228,1749900641359,-300.0,0.00016999,2]
[365771229,1749900641368,-153.28930996,0.00016999,2]
[365771230,1749900641377,-29370.71681502,0.00016999,2]
[365771231,1749900641386,-304200.35530401,0.00016999,2]
[365771232,1749900641708,201.0,0.0001518,2]
[365771233,1749900641956,201.0,0.0001574,2]
[365771247,1749900643395,-201.0,0.00016301,3]
[365771248,1749900643404,-201.0,0.00016861,4]
[365771249,1749900643414,-2749.14410476,0.00016894,2]
[365771250,1749900643423,-662.17897503,0.00016999,2]
[365771252,1749900643449,-414.7651073,0.00016999,2]
[365771256,1749900643611,-889.56594259,0.00016999,2]
[365771257,1749900643624,-6288.78853201,0.00016999,2]
[365771258,1749900643667,-491.95238989,0.00016999,2]
[365771261,1749900646363,-2749.14410476,0.00016895,2]
[365771262,1749900646373,-1170.41098781,0.00016999,2]
[365771263,1749900646419,-3942.88748003,0.00016999,2]
[365771264,1749900646430,-2003.84958658,0.00016999,2]
[365771265,1749900646475,-51143.0,0.00016999,2]
[365771266,1749900646532,-624.94584388,0.00016999,2]
[365771267,1749900646553,-2358.95772199,0.00016999,2]
[365771268,1749900646587,-59922.89225826,0.00016999,2]
[365771269,1749900646599,-844.34532881,0.00016999,2]
[365771279,1749900651781,669.53,0.00014361,2]
[365771280,1749900656303,500.0,0.0002465,120]
[365771281,1749900698121,600.0,0.00015068,2]
[365771282,1749900701329,201.0,0.0001518,2]
[365771283,1749900760962,-184.44394342,0.00016007,2]
[365771284,1749900853674,166.2,0.00015995,2]
[365771285,1749900857083,154.74,0.00013699,2]
[365771287,1749900883952,2933.79518756,0.00016,2]
[365771288,1749900883971,10000.0,0.00016,2]
[365771289,1749900883993,5767.66350809,0.00016,2]
[365771290,1749901072574,150.0,0.0002465,120]
[365771291,1749901087349,454.99704683,0.0002,30]
[365771292,1749901098469,150.0,0.0002,30]
[365771293,1749901123766,150.0,0.0002465,120]
[365771294,1749901179262,150.0,0.0002465,120]
[365771308,1749901188553,150.0,0.0002465,120]
[365771309,1749901189317,400.0,0.00024657,120]
[365771311,1749901331772,200.0,0.00015421,2]
[365771312,1749901332116,200.0,0.00015985,2]
[365771313,1749901359004,290.3,0.00015971,2]
[365771314,1749901365147,-152.0,0.00019831,14]
[365771315,1749901365182,-2600.12769684,0.00019979,14]
[365771316,1749901372526,1617.39,0.00015971,2]
[365771317,1749901395405,273.15,0.00015985,2]
[365771318,1749901397110,250.0,0.00015985,2]
[365771319,1749901534499,1401.49649191,0.00015991,2]
[365771320,1749901534521,1931.58350809,0.00015991,2]
[365771321,1749901557262,387.87858924,0.00016,2]
[365771322,1749901574719,-500.0,0.00024658,120]
[365771323,1749901574747,-500.0,0.00024658,120]
[365771324,1749901574778,-1537.05392966,0.00025,120]
[365771325,1749901574806,-346.33,0.00025,120]
[365771326,1749901576327,468.45,0.00015984,2]
[365771346,1749901691557,200.0,0.0001555,2]
[365771348,1749901751422,1000.0,0.00015914,2]
[365771350,1749901775398,6012.08790267,0.00015901,2]
[365771351,1749901775417,6101.55209733,0.00015901,2]
[365771353,1749901809090,859.03,0.00015877,2]
[365771359,1749901831572,-200.0,0.00016127,2]
[365771360,1749901831581,-119.25599862,0.00016144,2]
[365771361,1749901831593,-186.59400138,0.00016144,2]
[365771362,1749901831602,-273.40599862,0.00016144,2]
[365771363,1749901831625,-26.89400138,0.00016144,2]
[365771364,1749901831634,-305.55,0.00016156,2]
[365771365,1749901831643,-305.63,0.00016156,2]
[365771366,1749901831652,-91.07789589,0.00016164,2]
[365771367,1749901831731,-288.616007,0.00016164,2]
[365771548,1749901839899,-304.96,0.00016137,2]
[365771549,1749901839909,-320.30609711,0.00016164,2]
[365771550,1749901839918,-600.0,0.00016438,2]
[365771551,1749901839927,-300.89,0.00016438,2]
[365771552,1749901839937,-302.98,0.00016438,2]
[365771553,1749901839947,-302.05,0.00016438,2]
[365771554,1749901839956,-300.69,0.00016438,2]
[365771555,1749901839965,-166.65,0.00016474,2]
[365771556,1749901839975,-250.0,0.00016589,2]
[365771557,1749901839984,-1200.0,0.00016613,2]
[365771558,1749901839994,-207.4,0.00016614,2]
[365771559,1749901840003,-300.0,0.00016624,2]
[365771560,1749901840014,-669.53,0.00016625,2]
[365771561,1749901840023,-303.43,0.00016625,2]
[365771562,1749901840033,-304.1,0.00016625,2]
[365771563,1749901840043,-301.2,0.00016625,2]
[365771564,1749901840053,-200.0,0.00016704,3]
[365771565,1749901840063,-867.9924602,0.00016798,2]
[365771566,1749901840073,-797.31,0.000168,2]
[365771567,1749901840082,-500.0,0.00016864,2]
[365771568,1749901840092,-1924.40087335,0.00016899,2]
[365771569,1749901840102,-165.42667141,0.00016899,2]
[365771570,1749901840111,-159.39672902,0.00016899,2]
[365771571,1749901840121,-1924.40087333,0.00016899,2]
[365771572,1749901840131,-1924.40087333,0.00016899,2]
[365771573,1749901840141,-1924.40087333,0.00016899,2]